[Event "Titled Tuesday Blitz July 26 Late 2022"]
[White "Prieto Aranguren, Alain"]
[Black "Dev, Shah"]
[WhiteFideId "2268906"]
[BlackFideId "35019058"]
[WhiteElo "2224"]
[BlackElo "2048"]
[Result "0-1"]
[Round "01"]
[TimeControl "180+1"]
[Date "2022.07.27"]
[WhiteClock "0:00:02"]
[BlackClock "0:00:04"]

1. d4 {[%clk 0:02:59]}  d5 {[%clk 0:02:59]} 2. c4 {[%clk 0:02:59]}  c6 {[%clk 0:02:58]} 3. cxd5 {[%clk 0:02:58]}  cxd5 {[%clk 0:02:57]} 4. Nc3 {[%clk 0:02:58]}  Nf6 {[%clk 0:02:56]} 5. Nf3 {[%clk 0:02:59]}  Nc6 {[%clk 0:02:55]} 6. Bf4 {[%clk 0:02:59]}  Ne4 {[%clk 0:02:56]} 7. Qb3 {[%clk 0:02:55]}  Nxc3 {[%clk 0:02:54]} 8. bxc3 {[%clk 0:02:53]}  e6 {[%clk 0:02:54]} 9. e3 {[%clk 0:02:53]}  Bd6 {[%clk 0:02:54]} 10. Bg3 {[%clk 0:02:52]}  O-O {[%clk 0:02:54]} 11. Bd3 {[%clk 0:02:52]}  b6 {[%clk 0:02:53]} 12. O-O {[%clk 0:02:52]}  Bb7 {[%clk 0:02:51]} 13. Rac1 {[%clk 0:02:45]}  Na5 {[%clk 0:02:50]} 14. Qa4 {[%clk 0:02:45]}  Rc8 {[%clk 0:02:47]} 15. Ne5 {[%clk 0:02:44]}  f6 {[%clk 0:02:40]} 16. Nf3 {[%clk 0:02:34]}  Bxg3 {[%clk 0:01:59]} 17. hxg3 {[%clk 0:02:34]}  a6 {[%clk 0:01:47]} 18. Qc2 {[%clk 0:02:32]}  b5 {[%clk 0:01:46]} 19. Bxh7+ {[%clk 0:02:31]}  Kh8 {[%clk 0:01:45]} 20. Qg6 {[%clk 0:02:27]}  Qe8 {[%clk 0:01:38]} 21. Qxe8 {[%clk 0:02:26]}  Rfxe8 {[%clk 0:01:37]} 22. Bg6 {[%clk 0:02:27]}  Re7 {[%clk 0:01:38]} 23. Nh4 {[%clk 0:02:23]}  Rec7 {[%clk 0:01:37]} 24. Bc2 {[%clk 0:02:01]}  f5 {[%clk 0:01:22]} 25. Bb1 {[%clk 0:01:43]}  Rxc3 {[%clk 0:01:21]} 26. Rxc3 {[%clk 0:01:44]}  Rxc3 {[%clk 0:01:18]} 27. Ng6+ {[%clk 0:01:43]}  Kg8 {[%clk 0:01:12]} 28. Ne5 {[%clk 0:01:42]}  Nc4 {[%clk 0:01:10]} 29. Nd7 {[%clk 0:01:35]}  a5 {[%clk 0:00:52]} 30. Nc5 {[%clk 0:01:33]}  Bc8 {[%clk 0:00:53]} 31. g4 {[%clk 0:01:27]}  fxg4 {[%clk 0:00:51]} 32. Kh2 {[%clk 0:01:27]}  b4 {[%clk 0:00:49]} 33. Kg3 {[%clk 0:01:27]}  e5 {[%clk 0:00:42]} 34. Bg6 {[%clk 0:01:10]}  exd4 {[%clk 0:00:40]} 35. Kf4 {[%clk 0:01:01]}  dxe3 {[%clk 0:00:33]} 36. Na4 {[%clk 0:00:58]}  Ra3 {[%clk 0:00:22]} 37. Nc5 {[%clk 0:00:55]}  Rc3 {[%clk 0:00:15]} 38. Na4 {[%clk 0:00:52]}  Ra3 {[%clk 0:00:09]} 39. Nc5 {[%clk 0:00:52]}  Rxa2 {[%clk 0:00:09]} 40. fxe3 {[%clk 0:00:50]}  Rxg2 {[%clk 0:00:09]} 41. Kg5 {[%clk 0:00:50]}  Ne5 {[%clk 0:00:08]} 42. Bh5 {[%clk 0:00:41]}  Nf3+ {[%clk 0:00:08]} 43. Kg6 {[%clk 0:00:38]}  Nh4+ {[%clk 0:00:07]} 44. Kg5 {[%clk 0:00:38]}  Nf3+ {[%clk 0:00:07]} 45. Kg6 {[%clk 0:00:38]}  Kf8 {[%clk 0:00:07]} 46. Ra1 {[%clk 0:00:36]}  Ne5+ {[%clk 0:00:04]} 47. Kg5 {[%clk 0:00:34]}  Nc4 {[%clk 0:00:04]} 48. Rf1+ {[%clk 0:00:32]}  Ke7 {[%clk 0:00:05]} 49. Rf7+ {[%clk 0:00:27]}  Kd6 {[%clk 0:00:05]} 50. Nd3 {[%clk 0:00:25]}  b3 {[%clk 0:00:05]} 51. Rxg7 {[%clk 0:00:24]}  b2 {[%clk 0:00:04]} 52. Rg6+ {[%clk 0:00:24]}  Kc7 {[%clk 0:00:05]} 53. Nxb2 {[%clk 0:00:19]}  Rxb2 {[%clk 0:00:04]} 54. Rg7+ {[%clk 0:00:18]}  Kb8 {[%clk 0:00:04]} 55. Rg8 {[%clk 0:00:18]}  Rg2 {[%clk 0:00:03]} 56. Kf4 {[%clk 0:00:18]}  a4 {[%clk 0:00:03]} 57. Bf7 {[%clk 0:00:17]}  a3 {[%clk 0:00:02]} 58. Bxd5 {[%clk 0:00:17]}  Nb6 {[%clk 0:00:03]} 59. e4 {[%clk 0:00:10]}  a2 {[%clk 0:00:03]} 60. Bxa2 {[%clk 0:00:05]}  Rxa2 {[%clk 0:00:04]} 61. e5 {[%clk 0:00:06]}  Re2 {[%clk 0:00:04]} 62. Re8 {[%clk 0:00:02]}  Nd5+ {[%clk 0:00:04]} 0-1


[Site "https://www.chess.com"]

[Event "Titled Tuesday Blitz July 26 Late 2022"]
[White "Quesada Perez, Yuniesky"]
[Black "Cremisi, Daniel"]
[WhiteFideId "3504409"]
[BlackFideId "2089882"]
[WhiteElo "2599"]
[BlackElo "2172"]
[Result "0-1"]
[Round "01"]
[TimeControl "180+1"]
[Date "2022.07.26"]
[WhiteClock "0:00:15"]
[BlackClock "0:01:25"]

1. e4 {[%clk 0:02:59]}  e6 {[%clk 0:02:48]} 2. d4 {[%clk 0:02:58]}  d5 {[%clk 0:02:48]} 3. e5 {[%clk 0:02:58]}  c5 {[%clk 0:02:48]} 4. c3 {[%clk 0:02:59]}  Nc6 {[%clk 0:02:49]} 5. Nf3 {[%clk 0:03:00]}  Qb6 {[%clk 0:02:49]} 6. a3 {[%clk 0:02:59]}  Nh6 {[%clk 0:02:49]} 7. b4 {[%clk 0:02:57]}  cxd4 {[%clk 0:02:49]} 8. Bxh6 {[%clk 0:02:58]}  gxh6 {[%clk 0:02:49]} 9. cxd4 {[%clk 0:02:58]}  Bg7 {[%clk 0:02:49]} 10. Nc3 {[%clk 0:02:19]}  O-O {[%clk 0:02:35]} 11. Bd3 {[%clk 0:02:04]}  f6 {[%clk 0:02:32]} 12. exf6 {[%clk 0:01:54]}  Rxf6 {[%clk 0:02:30]} 13. O-O {[%clk 0:01:53]}  Bd7 {[%clk 0:02:20]} 14. Na4 {[%clk 0:01:53]}  Qc7 {[%clk 0:02:17]} 15. Nc5 {[%clk 0:01:53]}  Be8 {[%clk 0:02:14]} 16. Ne5 {[%clk 0:01:17]}  Nxd4 {[%clk 0:01:59]} 17. f4 {[%clk 0:01:13]}  b6 {[%clk 0:01:54]} 18. Nb3 {[%clk 0:01:09]}  Nxb3 {[%clk 0:01:47]} 19. Qxb3 {[%clk 0:01:09]}  Rc8 {[%clk 0:01:45]} 20. Rae1 {[%clk 0:01:04]}  Qc3 {[%clk 0:01:42]} 21. Qb1 {[%clk 0:01:04]}  Qd4+ {[%clk 0:01:39]} 22. Kh1 {[%clk 0:01:03]}  Rxf4 {[%clk 0:01:39]} 23. Rxf4 {[%clk 0:00:53]}  Qxf4 {[%clk 0:01:38]} 24. Nf3 {[%clk 0:00:32]}  Bh5 {[%clk 0:01:33]} 25. Bxh7+ {[%clk 0:00:20]}  Kh8 {[%clk 0:01:33]} 26. Rf1 {[%clk 0:00:19]}  Bxf3 {[%clk 0:01:26]} 27. gxf3 {[%clk 0:00:15]}  Be5 {[%clk 0:01:25]} 0-1


[Site "https://www.chess.com"]

[Event "Titled Tuesday Blitz July 26 Late 2022"]
[White "Rosen, Eric"]
[Black "Todorovic, Bojan"]
[WhiteFideId "2032562"]
[BlackFideId "917087"]
[WhiteElo "2362"]
[BlackElo "2266"]
[Result "1-0"]
[Round "01"]
[TimeControl "180+1"]
[Date "2022.07.27"]
[WhiteClock "0:00:08"]
[BlackClock "0:00:04"]

1. d4 {[%clk 0:02:57]}  Nf6 {[%clk 0:02:58]} 2. Bf4 {[%clk 0:02:57]}  d6 {[%clk 0:02:57]} 3. Nc3 {[%clk 0:02:57]}  g6 {[%clk 0:02:55]} 4. e4 {[%clk 0:02:57]}  Bg7 {[%clk 0:02:55]} 5. Qd2 {[%clk 0:02:57]}  Nc6 {[%clk 0:02:51]} 6. O-O-O {[%clk 0:02:57]}  O-O {[%clk 0:02:41]} 7. Bh6 {[%clk 0:02:57]}  e5 {[%clk 0:02:39]} 8. d5 {[%clk 0:02:54]}  Ne7 {[%clk 0:02:39]} 9. f3 {[%clk 0:02:54]}  Nh5 {[%clk 0:02:30]} 10. Nge2 {[%clk 0:02:47]}  f5 {[%clk 0:02:28]} 11. Bxg7 {[%clk 0:02:47]}  Kxg7 {[%clk 0:02:25]} 12. exf5 {[%clk 0:02:48]}  Nf4 {[%clk 0:02:02]} 13. Nxf4 {[%clk 0:02:46]}  exf4 {[%clk 0:02:01]} 14. fxg6 {[%clk 0:02:31]}  Nxg6 {[%clk 0:01:59]} 15. Bd3 {[%clk 0:02:25]}  Bf5 {[%clk 0:01:58]} 16. h4 {[%clk 0:02:12]}  h5 {[%clk 0:01:54]} 17. Bxf5 {[%clk 0:02:02]}  Rxf5 {[%clk 0:01:53]} 18. Ne4 {[%clk 0:02:03]}  Re5 {[%clk 0:01:48]} 19. Ng5 {[%clk 0:01:57]}  Qf6 {[%clk 0:01:42]} 20. Ne6+ {[%clk 0:01:54]}  Kh6 {[%clk 0:01:42]} 21. g4 {[%clk 0:01:48]}  Kh7 {[%clk 0:01:26]} 22. Ng5+ {[%clk 0:01:45]}  Kh8 {[%clk 0:01:24]} 23. Ne4 {[%clk 0:01:45]}  Qe7 {[%clk 0:01:21]} 24. gxh5 {[%clk 0:01:39]}  Nxh4 {[%clk 0:01:19]} 25. Qxf4 {[%clk 0:01:16]}  Nf5 {[%clk 0:01:19]} 26. Ng5 {[%clk 0:01:01]}  Rg8 {[%clk 0:01:11]} 27. Ne6 {[%clk 0:00:55]}  Qf6 {[%clk 0:01:06]} 28. h6 {[%clk 0:00:44]}  Qg6 {[%clk 0:01:01]} 29. h7 {[%clk 0:00:42]}  Re8 {[%clk 0:00:59]} 30. Rd2 {[%clk 0:00:38]}  Qg3 {[%clk 0:00:52]} 31. Qa4 {[%clk 0:00:36]}  c6 {[%clk 0:00:50]} 32. Rdd1 {[%clk 0:00:15]}  Qxf3 {[%clk 0:00:42]} 33. Kb1 {[%clk 0:00:16]}  Rxd5 {[%clk 0:00:39]} 34. Rdf1 {[%clk 0:00:11]}  Qe2 {[%clk 0:00:25]} 35. Nf4 {[%clk 0:00:10]}  Rd4 {[%clk 0:00:19]} 36. Nxe2 {[%clk 0:00:05]}  Rxa4 {[%clk 0:00:18]} 37. Rxf5 {[%clk 0:00:05]}  Rae4 {[%clk 0:00:16]} 38. Nc1 {[%clk 0:00:06]}  R4e7 {[%clk 0:00:15]} 39. Rfh5 {[%clk 0:00:06]}  Rg7 {[%clk 0:00:15]} 40. Rh6 {[%clk 0:00:07]}  d5 {[%clk 0:00:14]} 41. b3 {[%clk 0:00:07]}  Ree7 {[%clk 0:00:15]} 42. Kb2 {[%clk 0:00:07]}  Rxh7 {[%clk 0:00:15]} 43. Rxh7+ {[%clk 0:00:07]}  Rxh7 {[%clk 0:00:15]} 44. Rxh7+ {[%clk 0:00:08]}  Kxh7 {[%clk 0:00:15]} 45. Kc3 {[%clk 0:00:08]}  Kg6 {[%clk 0:00:15]} 46. Kd4 {[%clk 0:00:09]}  Kf5 {[%clk 0:00:11]} 47. Nd3 {[%clk 0:00:08]}  b6 {[%clk 0:00:10]} 48. Nb4 {[%clk 0:00:07]}  c5+ {[%clk 0:00:10]} 49. Kxd5 {[%clk 0:00:08]}  cxb4 {[%clk 0:00:10]} 50. Kc4 {[%clk 0:00:08]}  Ke5 {[%clk 0:00:11]} 51. Kxb4 {[%clk 0:00:08]}  Kd4 {[%clk 0:00:11]} 52. Kb5 {[%clk 0:00:08]}  Kc3 {[%clk 0:00:10]} 53. Ka6 {[%clk 0:00:07]}  Kxc2 {[%clk 0:00:10]} 54. Kxa7 {[%clk 0:00:07]}  Kb2 {[%clk 0:00:11]} 55. b4 {[%clk 0:00:08]}  Kxa2 {[%clk 0:00:05]} 56. b5 {[%clk 0:00:08]}  Kb3 {[%clk 0:00:04]} 57. Kxb6 {[%clk 0:00:08]} 1-0


[Site "https://www.chess.com"]

[Event "Titled Tuesday Blitz July 26 Late 2022"]
[White "Rustemov, Alexander"]
[Black "Zhukova, Natalia"]
[WhiteFideId "4119002"]
[BlackFideId "14101513"]
[WhiteElo "2800"]
[BlackElo "2296"]
[Result "1-0"]
[Round "01"]
[TimeControl "180+1"]
[Date "2022.07.26"]
[WhiteClock "0:01:56"]
[BlackClock "0:00:13"]

1. d4 {[%clk 0:03:00]}  Nf6 {[%clk 0:02:58]} 2. c4 {[%clk 0:03:00]}  c5 {[%clk 0:02:56]} 3. d5 {[%clk 0:02:59]}  b5 {[%clk 0:02:56]} 4. cxb5 {[%clk 0:03:00]}  a6 {[%clk 0:02:55]} 5. e3 {[%clk 0:02:59]}  g6 {[%clk 0:02:54]} 6. Nc3 {[%clk 0:02:59]}  Bg7 {[%clk 0:02:54]} 7. a4 {[%clk 0:02:59]}  O-O {[%clk 0:02:55]} 8. e4 {[%clk 0:02:59]}  Bb7 {[%clk 0:02:47]} 9. Bc4 {[%clk 0:02:58]}  e6 {[%clk 0:02:47]} 10. Nf3 {[%clk 0:02:57]}  axb5 {[%clk 0:02:44]} 11. Bxb5 {[%clk 0:02:56]}  exd5 {[%clk 0:02:44]} 12. exd5 {[%clk 0:02:57]}  Re8+ {[%clk 0:02:44]} 13. Be3 {[%clk 0:02:58]}  Ng4 {[%clk 0:02:29]} 14. O-O {[%clk 0:02:57]}  Rxe3 {[%clk 0:02:30]} 15. fxe3 {[%clk 0:02:58]}  Nxe3 {[%clk 0:02:30]} 16. Qd2 {[%clk 0:02:58]}  Nxf1 {[%clk 0:02:31]} 17. Rxf1 {[%clk 0:02:58]}  d6 {[%clk 0:02:28]} 18. Ng5 {[%clk 0:02:54]}  Bh6 {[%clk 0:01:57]} 19. Qf2 {[%clk 0:02:53]}  f5 {[%clk 0:01:39]} 20. Ne6 {[%clk 0:02:50]}  Qf6 {[%clk 0:01:20]} 21. Qg3 {[%clk 0:02:26]}  Qe5 {[%clk 0:00:45]} 22. Qh4 {[%clk 0:02:24]}  Be3+ {[%clk 0:00:32]} 23. Kh1 {[%clk 0:02:24]}  Na6 {[%clk 0:00:21]} 24. Qe7 {[%clk 0:02:16]}  Rb8 {[%clk 0:00:18]} 25. Re1 {[%clk 0:02:07]}  f4 {[%clk 0:00:17]} 26. Be8 {[%clk 0:02:00]}  Qf5 {[%clk 0:00:13]} 27. Qg7# {[%clk 0:01:56]} 1-0


[Site "https://www.chess.com"]

[Event "Titled Tuesday Blitz July 26 Late 2022"]
[White "Salem, A.R. Saleh"]
[Black "Jian, Alex"]
[WhiteFideId "9301348"]
[BlackFideId "30901022"]
[WhiteElo "2679"]
[BlackElo "2095"]
[Result "1-0"]
[Round "01"]
[TimeControl "180+1"]
[Date "2022.07.26"]
[WhiteClock "0:00:31"]
[BlackClock "0:00:02"]

1. d4 {[%clk 0:03:00]}  Nf6 {[%clk 0:02:59]} 2. c4 {[%clk 0:03:00]}  e6 {[%clk 0:03:00]} 3. Nc3 {[%clk 0:03:01]}  d5 {[%clk 0:02:57]} 4. cxd5 {[%clk 0:03:01]}  Nxd5 {[%clk 0:02:57]} 5. e3 {[%clk 0:03:01]}  c5 {[%clk 0:02:55]} 6. Bd3 {[%clk 0:03:01]}  Nc6 {[%clk 0:02:49]} 7. Nf3 {[%clk 0:03:00]}  cxd4 {[%clk 0:02:47]} 8. exd4 {[%clk 0:03:00]}  Bb4 {[%clk 0:02:47]} 9. O-O {[%clk 0:02:59]}  O-O {[%clk 0:02:42]} 10. Bc2 {[%clk 0:02:56]}  Be7 {[%clk 0:02:35]} 11. Qd3 {[%clk 0:02:54]}  g6 {[%clk 0:02:32]} 12. a3 {[%clk 0:02:51]}  Bf6 {[%clk 0:02:27]} 13. Re1 {[%clk 0:02:41]}  b6 {[%clk 0:02:11]} 14. Bh6 {[%clk 0:02:31]}  Re8 {[%clk 0:01:58]} 15. Nxd5 {[%clk 0:02:25]}  Qxd5 {[%clk 0:01:45]} 16. Bb3 {[%clk 0:02:22]}  Qd6 {[%clk 0:01:45]} 17. d5 {[%clk 0:02:20]}  Bb7 {[%clk 0:01:29]} 18. Qe3 {[%clk 0:01:37]}  Na5 {[%clk 0:01:13]} 19. dxe6 {[%clk 0:01:29]}  Nxb3 {[%clk 0:01:01]} 20. exf7+ {[%clk 0:01:29]}  Kxf7 {[%clk 0:01:02]} 21. Qxb3+ {[%clk 0:01:29]}  Qd5 {[%clk 0:00:51]} 22. Qa4 {[%clk 0:01:21]}  Bc6 {[%clk 0:00:42]} 23. Qf4 {[%clk 0:01:16]}  Qf5 {[%clk 0:00:18]} 24. Qc7+ {[%clk 0:00:55]}  Qd7 {[%clk 0:00:18]} 25. Qg3 {[%clk 0:00:56]}  Kg8 {[%clk 0:00:16]} 26. Ne5 {[%clk 0:00:42]}  Bxe5 {[%clk 0:00:10]} 27. Rxe5 {[%clk 0:00:43]}  Rxe5 {[%clk 0:00:08]} 28. Qxe5 {[%clk 0:00:44]}  Re8 {[%clk 0:00:08]} 29. Qc3 {[%clk 0:00:41]}  Bd5 {[%clk 0:00:03]} 30. h3 {[%clk 0:00:33]}  Rc8 {[%clk 0:00:03]} 31. Qd4 {[%clk 0:00:31]}  Qf5 {[%clk 0:00:02]} 32. Qg7# {[%clk 0:00:31]} 1-0


[Site "https://www.chess.com"]

[Event "Titled Tuesday Blitz July 26 Late 2022"]
[White "Vagman, Roy"]
[Black "Fedoseev, Vladimir"]
[WhiteFideId "2828995"]
[BlackFideId "24130737"]
[WhiteElo "1956"]
[BlackElo "2726"]
[Result "0-1"]
[Round "01"]
[TimeControl "180+1"]
[Date "2022.07.26"]
[WhiteClock "0:00:03"]
[BlackClock "0:00:15"]

1. d4 {[%clk 0:02:59]}  Nf6 {[%clk 0:02:58]} 2. c4 {[%clk 0:02:58]}  e6 {[%clk 0:02:59]} 3. g3 {[%clk 0:02:56]}  d5 {[%clk 0:02:59]} 4. Bg2 {[%clk 0:02:56]}  Bb4+ {[%clk 0:02:57]} 5. Nd2 {[%clk 0:02:54]}  O-O {[%clk 0:02:55]} 6. Nf3 {[%clk 0:02:52]}  dxc4 {[%clk 0:02:53]} 7. Qc2 {[%clk 0:02:50]}  b5 {[%clk 0:02:51]} 8. a4 {[%clk 0:02:48]}  Bb7 {[%clk 0:02:20]} 9. axb5 {[%clk 0:02:46]}  Qd5 {[%clk 0:02:20]} 10. O-O {[%clk 0:02:36]}  Qxb5 {[%clk 0:02:09]} 11. Qxc4 {[%clk 0:02:34]}  a6 {[%clk 0:01:59]} 12. Ne5 {[%clk 0:02:05]}  Bxg2 {[%clk 0:01:54]} 13. Kxg2 {[%clk 0:02:05]}  Nbd7 {[%clk 0:01:45]} 14. Ndf3 {[%clk 0:01:53]}  Nxe5 {[%clk 0:01:28]} 15. Nxe5 {[%clk 0:01:52]}  Bd6 {[%clk 0:01:23]} 16. Rd1 {[%clk 0:01:00]}  Bxe5 {[%clk 0:01:05]} 17. Qxb5 {[%clk 0:00:58]}  axb5 {[%clk 0:01:05]} 18. Rxa8 {[%clk 0:00:57]}  Rxa8 {[%clk 0:01:06]} 19. dxe5 {[%clk 0:00:58]}  Nd5 {[%clk 0:01:07]} 20. e4 {[%clk 0:00:56]}  Nb4 {[%clk 0:00:55]} 21. Rd7 {[%clk 0:00:52]}  Rc8 {[%clk 0:00:41]} 22. Be3 {[%clk 0:00:47]}  h6 {[%clk 0:00:29]} 23. f4 {[%clk 0:00:46]}  c5 {[%clk 0:00:20]} 24. Rb7 {[%clk 0:00:43]}  Nc2 {[%clk 0:00:20]} 25. Bf2 {[%clk 0:00:31]}  b4 {[%clk 0:00:19]} 26. f5 {[%clk 0:00:23]}  c4 {[%clk 0:00:19]} 27. Kf3 {[%clk 0:00:17]}  c3 {[%clk 0:00:18]} 28. bxc3 {[%clk 0:00:15]}  bxc3 {[%clk 0:00:19]} 29. Ke2 {[%clk 0:00:13]}  Na3 {[%clk 0:00:19]} 30. Be3 {[%clk 0:00:11]}  Nc4 {[%clk 0:00:19]} 31. Bc1 {[%clk 0:00:11]}  Nxe5 {[%clk 0:00:18]} 32. fxe6 {[%clk 0:00:11]}  fxe6 {[%clk 0:00:18]} 33. Re7 {[%clk 0:00:11]}  Nc6 {[%clk 0:00:18]} 34. Rd7 {[%clk 0:00:09]}  e5 {[%clk 0:00:18]} 35. Kd3 {[%clk 0:00:07]}  Nb4+ {[%clk 0:00:17]} 36. Ke2 {[%clk 0:00:06]}  Na2 {[%clk 0:00:17]} 37. Kd1 {[%clk 0:00:05]}  c2+ {[%clk 0:00:11]} 38. Kd2 {[%clk 0:00:05]}  Rc4 {[%clk 0:00:11]} 39. Ra7 {[%clk 0:00:03]}  Nxc1 {[%clk 0:00:11]} 40. Kxc1 {[%clk 0:00:03]}  Rxe4 {[%clk 0:00:11]} 41. Kxc2 {[%clk 0:00:03]}  Re2+ {[%clk 0:00:12]} 42. Kd3 {[%clk 0:00:04]}  Rxh2 {[%clk 0:00:12]} 43. Ke4 {[%clk 0:00:05]}  Re2+ {[%clk 0:00:12]} 44. Kf5 {[%clk 0:00:05]}  Re3 {[%clk 0:00:11]} 45. g4 {[%clk 0:00:05]}  Kh7 {[%clk 0:00:11]} 46. Re7 {[%clk 0:00:04]}  e4 {[%clk 0:00:11]} 47. Kf4 {[%clk 0:00:04]}  Re1 {[%clk 0:00:11]} 48. Rxe4 {[%clk 0:00:03]}  Rxe4+ {[%clk 0:00:10]} 49. Kxe4 {[%clk 0:00:04]}  Kg6 {[%clk 0:00:11]} 50. Kf4 {[%clk 0:00:03]}  Kf6 {[%clk 0:00:11]} 51. Kf3 {[%clk 0:00:04]}  Kg5 {[%clk 0:00:12]} 52. Kg3 {[%clk 0:00:04]}  g6 {[%clk 0:00:12]} 53. Kh3 {[%clk 0:00:04]}  Kf4 {[%clk 0:00:12]} 54. Kh4 {[%clk 0:00:03]}  Kf3 {[%clk 0:00:13]} 55. g5 {[%clk 0:00:02]}  h5 {[%clk 0:00:13]} 56. Kh3 {[%clk 0:00:02]}  Kf4 {[%clk 0:00:14]} 57. Kh4 {[%clk 0:00:02]}  Kf5 {[%clk 0:00:14]} 58. Kh3 {[%clk 0:00:03]}  Kxg5 {[%clk 0:00:15]} 59. Kg3 {[%clk 0:00:03]}  h4+ {[%clk 0:00:15]} 0-1


[Site "https://www.chess.com"]

[Event "Titled Tuesday Blitz July 26 Late 2022"]
[White "Voege, Tobias"]
[Black "Riehle, Marco"]
[WhiteFideId "1270513"]
[BlackFideId "12904392"]
[WhiteElo "2379"]
[BlackElo "2462"]
[Result "0-1"]
[Round "01"]
[TimeControl "180+1"]
[Date "2022.07.26"]
[WhiteClock "0:00:14"]
[BlackClock "0:01:29"]

1. d4 {[%clk 0:02:59]}  d5 {[%clk 0:02:54]} 2. c4 {[%clk 0:02:59]}  e6 {[%clk 0:02:54]} 3. Nc3 {[%clk 0:02:57]}  c5 {[%clk 0:02:54]} 4. Nf3 {[%clk 0:02:57]}  cxd4 {[%clk 0:02:55]} 5. Nxd4 {[%clk 0:02:58]}  e5 {[%clk 0:02:55]} 6. Ndb5 {[%clk 0:02:58]}  a6 {[%clk 0:02:55]} 7. Qa4 {[%clk 0:02:58]}  Bd7 {[%clk 0:02:53]} 8. Nxd5 {[%clk 0:02:58]}  Bxb5 {[%clk 0:02:53]} 9. cxb5 {[%clk 0:02:56]}  Qxd5 {[%clk 0:02:54]} 10. e4 {[%clk 0:02:52]}  Qd4 {[%clk 0:02:42]} 11. Qxd4 {[%clk 0:02:49]}  exd4 {[%clk 0:02:43]} 12. Bd2 {[%clk 0:02:33]}  Nf6 {[%clk 0:02:39]} 13. bxa6 {[%clk 0:02:14]}  bxa6 {[%clk 0:02:34]} 14. f3 {[%clk 0:02:01]}  Bd6 {[%clk 0:02:30]} 15. Bc4 {[%clk 0:01:55]}  O-O {[%clk 0:02:29]} 16. O-O {[%clk 0:01:54]}  Nbd7 {[%clk 0:02:29]} 17. Rad1 {[%clk 0:01:53]}  Rab8 {[%clk 0:02:27]} 18. b3 {[%clk 0:01:44]}  Rb6 {[%clk 0:02:16]} 19. g4 {[%clk 0:01:39]}  h6 {[%clk 0:02:12]} 20. Ba5 {[%clk 0:01:30]}  Rc6 {[%clk 0:02:11]} 21. Kg2 {[%clk 0:01:31]}  Ne5 {[%clk 0:02:08]} 22. Rxd4 {[%clk 0:01:26]}  Nxc4 {[%clk 0:02:07]} 23. Rxc4 {[%clk 0:01:25]}  Rxc4 {[%clk 0:02:07]} 24. bxc4 {[%clk 0:01:26]}  Rc8 {[%clk 0:02:06]} 25. Rc1 {[%clk 0:01:25]}  Nd7 {[%clk 0:02:00]} 26. Rd1 {[%clk 0:01:11]}  Rc6 {[%clk 0:02:00]} 27. f4 {[%clk 0:01:12]}  f6 {[%clk 0:01:56]} 28. Kf3 {[%clk 0:01:08]}  g5 {[%clk 0:01:55]} 29. e5 {[%clk 0:01:03]}  fxe5 {[%clk 0:01:55]} 30. fxg5 {[%clk 0:01:00]}  hxg5 {[%clk 0:01:53]} 31. Bd8 {[%clk 0:00:49]}  Kf7 {[%clk 0:01:46]} 32. Bxg5 {[%clk 0:00:48]}  Ke6 {[%clk 0:01:46]} 33. Rc1 {[%clk 0:00:29]}  Rc8 {[%clk 0:01:45]} 34. h4 {[%clk 0:00:28]}  Rf8+ {[%clk 0:01:45]} 35. Ke2 {[%clk 0:00:28]}  e4 {[%clk 0:01:39]} 36. h5 {[%clk 0:00:21]}  Ne5 {[%clk 0:01:39]} 37. c5 {[%clk 0:00:18]}  Bc7 {[%clk 0:01:37]} 38. Rg1 {[%clk 0:00:15]}  Nf3 {[%clk 0:01:37]} 39. Bh6 {[%clk 0:00:14]}  Nxg1+ {[%clk 0:01:35]} 40. Ke3 {[%clk 0:00:14]}  Rh8 {[%clk 0:01:31]} 41. g5 {[%clk 0:00:14]}  Kf5 {[%clk 0:01:29]} 0-1


[Site "https://www.chess.com"]

[Event "Titled Tuesday Blitz July 26 Late 2022"]
[White "Andreikin, Dmitry"]
[Black "Rosen, Eric"]
[WhiteFideId "4158814"]
[BlackFideId "2032562"]
[WhiteElo "2736"]
[BlackElo "2362"]
[Result "1-0"]
[Round "02"]
[TimeControl "180+1"]
[Date "2022.07.26"]
[WhiteClock "0:01:36"]
[BlackClock "0:00:07"]

1. d4 {[%clk 0:03:00]}  d5 {[%clk 0:02:58]} 2. c4 {[%clk 0:03:01]}  e6 {[%clk 0:02:58]} 3. Nf3 {[%clk 0:03:01]}  Nf6 {[%clk 0:02:59]} 4. g3 {[%clk 0:03:01]}  h6 {[%clk 0:02:55]} 5. Bg2 {[%clk 0:03:01]}  Bd6 {[%clk 0:02:56]} 6. c5 {[%clk 0:02:58]}  Be7 {[%clk 0:02:55]} 7. O-O {[%clk 0:02:57]}  b6 {[%clk 0:02:55]} 8. cxb6 {[%clk 0:02:55]}  axb6 {[%clk 0:02:54]} 9. Nc3 {[%clk 0:02:55]}  O-O {[%clk 0:02:54]} 10. Ne5 {[%clk 0:02:55]}  Nfd7 {[%clk 0:02:54]} 11. Bf4 {[%clk 0:02:54]}  Nxe5 {[%clk 0:02:54]} 12. Bxe5 {[%clk 0:02:54]}  Bb7 {[%clk 0:02:53]} 13. Rc1 {[%clk 0:02:53]}  c5 {[%clk 0:02:50]} 14. e4 {[%clk 0:02:51]}  dxe4 {[%clk 0:02:39]} 15. Qg4 {[%clk 0:02:40]}  Bf6 {[%clk 0:02:25]} 16. Bxe4 {[%clk 0:02:36]}  Bxe4 {[%clk 0:02:14]} 17. Nxe4 {[%clk 0:02:35]}  Nd7 {[%clk 0:02:13]} 18. Nxf6+ {[%clk 0:02:32]}  Nxf6 {[%clk 0:02:12]} 19. Qh4 {[%clk 0:02:24]}  Rxa2 {[%clk 0:02:09]} 20. dxc5 {[%clk 0:02:22]}  bxc5 {[%clk 0:02:09]} 21. Rxc5 {[%clk 0:02:21]}  Nd7 {[%clk 0:01:35]} 22. Qxd8 {[%clk 0:02:21]}  Rxd8 {[%clk 0:01:36]} 23. Rd1 {[%clk 0:02:21]}  Nxc5 {[%clk 0:01:36]} 24. Rxd8+ {[%clk 0:02:20]}  Kh7 {[%clk 0:01:37]} 25. b4 {[%clk 0:02:05]}  Ne4 {[%clk 0:01:34]} 26. b5 {[%clk 0:02:04]}  Ra5 {[%clk 0:00:34]} 27. b6 {[%clk 0:02:00]}  Rxe5 {[%clk 0:00:34]} 28. b7 {[%clk 0:02:00]}  Rb5 {[%clk 0:00:35]} 29. b8=Q {[%clk 0:01:59]}  Rxb8 {[%clk 0:00:36]} 30. Rxb8 {[%clk 0:02:00]}  Kg6 {[%clk 0:00:36]} 31. Kg2 {[%clk 0:01:58]}  f6 {[%clk 0:00:35]} 32. Rb7 {[%clk 0:01:56]}  e5 {[%clk 0:00:34]} 33. g4 {[%clk 0:01:51]}  Ng5 {[%clk 0:00:32]} 34. h4 {[%clk 0:01:50]}  Ne6 {[%clk 0:00:32]} 35. Kf3 {[%clk 0:01:49]}  h5 {[%clk 0:00:25]} 36. gxh5+ {[%clk 0:01:38]}  Kxh5 {[%clk 0:00:26]} 37. Re7 {[%clk 0:01:37]}  Nd4+ {[%clk 0:00:25]} 38. Ke4 {[%clk 0:01:38]}  Kg6 {[%clk 0:00:18]} 39. f4 {[%clk 0:01:36]}  Nf5 {[%clk 0:00:10]} 40. h5+ {[%clk 0:01:36]}  Kxh5 {[%clk 0:00:06]} 41. Kxf5 {[%clk 0:01:36]}  exf4 {[%clk 0:00:07]} 42. Rxg7 {[%clk 0:01:36]}  f3 {[%clk 0:00:07]} 43. Rh7# {[%clk 0:01:36]} 1-0


[Site "https://www.chess.com"]